[Event "Limburg Open 2022"]
[Site "Maastricht"]
[Date "2022.06.05"]
[Round "4.5"]
[White "Ernst, Sipke"]
[Black "Van Dael, Siem"]
[Result "1/2-1/2"]
[ECO "E97"]
[WhiteElo "2538"]
[BlackElo "2317"]
[PlyCount "65"]
[EventDate "2022.06.03"]
[EventType "swiss"]
[EventRounds "7"]
[EventCountry "NED"]
[SourceTitle "Limburg Open"]
[Source "Limburg Open"]
[SourceDate "2022.06.06"]
[SourceVersion "7"]
[SourceVersionDate "2022.06.06"]
[SourceQuality "1"]
[TimeControl "7200+15"]

1. d4 {[%emt 0:00:07]} Nf6 {[%emt 0:01:18]} 2. c4 {[%emt 0:00:12]} g6 {[%emt 0:
00:05]} 3. Nc3 {[%emt 0:00:06]} Bg7 {[%emt 0:00:04]} 4. e4 {[%emt 0:00:16]} d6
{[%emt 0:00:12]} 5. Nf3 {[%emt 0:00:17]} O-O {[%emt 0:00:16]} 6. Be2 {[%emt 0:
00:23]} e5 {[%emt 0:00:23]} 7. O-O {[%emt 0:00:08]} Nc6 {[%emt 0:00:04]} 8. d5
{[%emt 0:00:04]} Ne7 {[%emt 0:00:03]} 9. b4 {[%emt 0:00:05]} a5 {[%emt 0:00:03]
} 10. bxa5 {[%emt 0:00:03]} Rxa5 {[%emt 0:03:45]} 11. a4 {[%emt 0:00:12]} Nh5 {
[%emt 0:01:44]} 12. g3 {[%emt 0:02:54]} f5 {[%emt 0:03:26]} 13. Ng5 {[%emt 0:
03:10]} Nf6 {[%emt 0:07:58]} 14. f3 {[%emt 0:05:30]} h6 {[%emt 0:06:01]} 15.
Ne6 {[%emt 0:00:12]} Bxe6 {[%emt 0:00:05]} 16. dxe6 {[%emt 0:00:06]} fxe4 {
[%emt 0:00:31]} 17. fxe4 {[%emt 0:01:18]} Qc8 {[%emt 0:00:26]} 18. Rb1 {
[%emt 0:08:51]} b6 {[%emt 0:02:51]} 19. Bd2 {[%emt 0:10:18]} Qxe6 {[%emt 0:06:
58]} 20. Nb5 {[%emt 0:12:22]} Rxb5 {[%emt 0:00:41]} 21. cxb5 {[%emt 0:00:05]}
Nxe4 {[%emt 0:00:29]} 22. Qc2 {[%emt 0:03:59]} Nxd2 {[%emt 0:02:40]} 23. Rxf8+
{[%emt 0:01:13]} Kxf8 {[%emt 0:11:31]} 24. Qxd2 {[%emt 0:00:30]} e4 {[%emt 0:
01:31]} 25. Rf1+ {[%emt 0:08:04]} Ke8 {[%emt 0:02:10]} 26. a5 {[%emt 0:07:39]}
bxa5 {[%emt 0:04:41]} 27. Qxa5 {[%emt 0:07:19]} Nf5 {[%emt 0:09:18]} 28. Rf4 {
[%emt 0:09:07]} Bd4+ {[%emt 0:13:32]} 29. Kg2 {[%emt 0:00:35]} d5 {[%emt 0:03:
23]} 30. Qa4 {[%emt 0:16:33]} Bb6 {[%emt 0:04:08]} 31. Qa8+ {[%emt 0:02:01]}
Kd7 {[%emt 0:03:55]} 32. g4 {[%emt 0:05:16]} Qe5 {[%emt 0:12:33]} 33. gxf5 {
[%emt 0:00:07]} 1/2-1/2

[Event "Limburg Open 2022"]
[Site "Maastricht"]
[Date "2022.06.05"]
[Round "4.6"]
[White "Freeke, Matthieu"]
[Black "Lahaye, Rick"]
[Result "0-1"]
[ECO "B94"]
[WhiteElo "2347"]
[BlackElo "2412"]
[PlyCount "64"]
[EventDate "2022.06.03"]
[EventType "swiss"]
[EventRounds "7"]
[EventCountry "NED"]
[SourceTitle "Limburg Open"]
[Source "Limburg Open"]
[SourceDate "2022.06.06"]
[SourceVersion "7"]
[SourceVersionDate "2022.06.06"]
[SourceQuality "1"]
[TimeControl "7200+15"]

1. e4 {[%emt 0:03:58]} c5 {[%emt 0:00:07]} 2. Nf3 {[%emt 0:00:15]} d6 {[%emt 0:
00:08]} 3. d4 {[%emt 0:02:22]} cxd4 {[%emt 0:00:05]} 4. Nxd4 {[%emt 0:00:08]}
Nf6 {[%emt 0:00:04]} 5. Nc3 {[%emt 0:00:05]} a6 {[%emt 0:00:04]} 6. Bg5 {
[%emt 0:04:11]} Nbd7 {[%emt 0:00:34]} 7. Bc4 {[%emt 0:01:59]} h6 {[%emt 0:00:
12]} 8. Bxf6 {[%emt 0:02:36]} Nxf6 {[%emt 0:00:46]} 9. Qe2 {[%emt 0:00:24]} e6
{[%emt 0:02:25]} 10. O-O-O {[%emt 0:01:24]} Qa5 {[%emt 0:24:35]} 11. f4 {
[%emt 0:03:46]} Qh5 {[%emt 0:00:17]} 12. Qd3 {[%emt 0:32:18]} Nd7 {[%emt 0:26:
46]} 13. e5 {[%emt 0:24:54]} Nc5 {[%emt 0:30:23]} 14. Qd2 {[%emt 0:01:03]} Bd7
{[%emt 0:00:14]} 15. b4 {[%emt 0:04:58]} Na4 {[%emt 0:13:53]} 16. Nxa4 {
[%emt 0:04:14]} Bxa4 {[%emt 0:01:06]} 17. Bb3 {[%emt 0:03:57]} Bxb3 {[%emt 0:
01:33]} 18. Nxb3 {[%emt 0:00:10]} O-O-O {[%emt 0:01:49]} 19. Qe3 {[%emt 0:04:
08]} d5 {[%emt 0:07:36]} 20. Rd3 {[%emt 0:13:49]} Qh4 {[%emt 0:01:32]} 21. g3 {
[%emt 0:05:23]} Qe7 {[%emt 0:00:05]} 22. Rc3+ {[%emt 0:00:38]} Kb8 {[%emt 0:00:
05]} 23. Qb6 {[%emt 0:00:17]} Qd7 {[%emt 0:00:19]} 24. Rd1 {[%emt 0:02:02]} Rc8
{[%emt 0:01:34]} 25. Rdd3 {[%emt 0:02:21]} Be7 {[%emt 0:00:52]} 26. Nd4 {
[%emt 0:00:16]} Rxc3 {[%emt 0:00:59]} 27. Rxc3 {[%emt 0:00:01]} Rc8 {[%emt 0:
00:01]} 28. Rxc8+ {[%emt 0:01:12]} Qxc8 {[%emt 0:00:01]} 29. Kd2 {[%emt 0:00:
48]} Qc4 {[%emt 0:00:34]} 30. c3 {[%emt 0:00:06]} Qxa2+ {[%emt 0:00:15]} 31.
Ke3 {[%emt 0:00:03]} Qc4 {[%emt 0:00:11]} 32. b5 {[%emt 0:01:16]} Bc5 {[%emt 0:
02:11]} 0-1

[Event "Limburg Open 2022"]
[Site "Maastricht"]
[Date "2022.06.05"]
[Round "4.7"]
[White "Slagboom, Leandro"]
[Black "Gupta, Sankalp"]
[Result "1-0"]
[ECO "B15"]
[WhiteElo "2098"]
[BlackElo "2505"]
[PlyCount "67"]
[EventDate "2022.06.03"]
[EventType "swiss"]
[EventRounds "7"]
[EventCountry "NED"]
[SourceTitle "Limburg Open"]
[Source "Limburg Open"]
[SourceDate "2022.06.06"]
[SourceVersion "7"]
[SourceVersionDate "2022.06.06"]
[SourceQuality "1"]
[TimeControl "7200+15"]

1. e4 {[%emt 0:00:04]} c6 {[%emt 0:02:34]} 2. d4 {[%emt 0:00:06]} d5 {[%emt 0:
00:06]} 3. f3 {[%emt 0:00:26]} g6 {[%emt 0:01:12]} 4. Nc3 {[%emt 0:03:16]} Bg7
{[%emt 0:00:41]} 5. Be3 {[%emt 0:01:07]} Nf6 {[%emt 0:04:06]} 6. e5 {[%emt 0:
03:12]} Nfd7 {[%emt 0:00:09]} 7. f4 {[%emt 0:04:38]} b5 {[%emt 0:02:07]} 8. Nf3
{[%emt 0:15:49]} e6 {[%emt 0:04:52]} 9. a3 {[%emt 0:04:41]} Nb6 {[%emt 0:04:33]
} 10. h4 {[%emt 0:02:45]} h5 {[%emt 0:00:56]} 11. g4 {[%emt 0:08:31]} Nc4 {
[%emt 0:03:15]} 12. Bxc4 {[%emt 0:06:16]} bxc4 {[%emt 0:02:54]} 13. gxh5 {
[%emt 0:00:21]} Rxh5 {[%emt 0:01:21]} 14. Ne2 {[%emt 0:02:05]} Nd7 {[%emt 0:04:
20]} 15. Ng3 {[%emt 0:02:01]} Rh8 {[%emt 0:00:01]} 16. h5 {[%emt 0:01:38]} Rb8
{[%emt 0:00:20]} 17. Rb1 {[%emt 0:01:31]} c3 {[%emt 0:02:37]} 18. b3 {[%emt 0:
05:01]} Ba6 {[%emt 0:00:35]} 19. Kf2 {[%emt 0:02:23]} Qe7 {[%emt 0:01:28]} 20.
Qg1 {[%emt 0:13:13]} Rg8 {[%emt 0:06:37]} 21. f5 {[%emt 0:19:23]} exf5 {
[%emt 0:01:47]} 22. h6 {[%emt 0:01:25]} Bf8 {[%emt 0:00:30]} 23. Nxf5 {[%emt 0:
00:59]} Qe6 {[%emt 0:00:13]} 24. Ng7+ {[%emt 0:11:03]} Bxg7 {[%emt 0:04:16]}
25. hxg7 {[%emt 0:00:01]} Qf5 {[%emt 0:00:12]} 26. Qg5 {[%emt 0:04:02]} f6 {
[%emt 0:12:53]} 27. Qxf5 {[%emt 0:01:30]} gxf5 {[%emt 0:00:01]} 28. e6 {
[%emt 0:00:46]} Nb6 {[%emt 0:00:03]} 29. Nh4 {[%emt 0:01:31]} Ke7 {[%emt 0:05:
18]} 30. Bf4 {[%emt 0:00:26]} Rbe8 {[%emt 0:02:21]} 31. Rbe1 {[%emt 0:00:15]}
Bc8 {[%emt 0:00:01]} 32. Nxf5+ {[%emt 0:01:28]} Kd8 {[%emt 0:00:01]} 33. e7+ {
[%emt 0:00:21]} Kd7 {[%emt 0:00:01]} 34. Rh6 {[%emt 0:00:58]} 1-0

[Event "Limburg Open 2022"]
[Site "Maastricht"]
[Date "2022.06.05"]
[Round "4.8"]
[White "Zwirs, Nico"]
[Black "Wild, Achim"]
[Result "1-0"]
[ECO "C41"]
[WhiteElo "2475"]
[BlackElo "2258"]
[PlyCount "123"]
[EventDate "2022.06.03"]
[EventType "swiss"]
[EventRounds "7"]
[EventCountry "NED"]
[SourceTitle "Limburg Open"]
[Source "Limburg Open"]
[SourceDate "2022.06.06"]
[SourceVersion "7"]
[SourceVersionDate "2022.06.06"]
[SourceQuality "1"]
[TimeControl "7200+15"]

1. e4 {[%emt 0:00:02]} d6 {[%emt 0:12:14]} 2. d4 {[%emt 0:00:11]} Nf6 {[%emt 0:
00:07]} 3. Nc3 {[%emt 0:00:01]} e5 {[%emt 0:00:04]} 4. Nf3 {[%emt 0:00:06]}
Nbd7 {[%emt 0:00:06]} 5. Bc4 {[%emt 0:00:08]} Be7 {[%emt 0:00:06]} 6. O-O {
[%emt 0:00:06]} O-O {[%emt 0:00:04]} 7. a4 {[%emt 0:00:10]} c6 {[%emt 0:00:06]}
8. Re1 {[%emt 0:00:09]} h6 {[%emt 0:00:05]} 9. h3 {[%emt 0:00:22]} Re8 {
[%emt 0:00:07]} 10. Be3 {[%emt 0:01:36]} exd4 {[%emt 0:00:47]} 11. Qxd4 {
[%emt 0:04:38]} Nf8 {[%emt 0:00:45]} 12. Rad1 {[%emt 0:06:52]} Be6 {[%emt 0:00:
46]} 13. Bf4 {[%emt 0:06:08]} a6 {[%emt 1:04:16]} 14. Bf1 {[%emt 0:13:59]} d5 {
[%emt 0:02:08]} 15. e5 {[%emt 0:12:38]} N6d7 {[%emt 0:01:29]} 16. Ne2 {[%emt 0:
06:36]} Ng6 {[%emt 0:08:45]} 17. Bg3 {[%emt 0:04:50]} Qa5 {[%emt 0:00:31]} 18.
Ra1 {[%emt 0:06:46]} c5 {[%emt 0:01:06]} 19. Qd1 {[%emt 0:01:04]} Rad8 {
[%emt 0:01:53]} 20. Nf4 {[%emt 0:01:54]} Nxf4 {[%emt 0:00:59]} 21. Bxf4 {
[%emt 0:00:05]} Nf8 {[%emt 0:02:30]} 22. Bd3 {[%emt 0:03:45]} d4 {[%emt 0:01:
34]} 23. Nd2 {[%emt 0:03:29]} Qc7 {[%emt 0:06:15]} 24. b3 {[%emt 0:03:57]} Qc6
{[%emt 0:04:13]} 25. a5 {[%emt 0:10:37]} Bd5 {[%emt 0:00:44]} 26. Ne4 {[%emt 0:
08:33]} Ne6 {[%emt 0:03:34]} 27. Bd2 {[%emt 0:01:59]} Ng5 {[%emt 0:03:01]} 28.
Bxg5 {[%emt 0:07:21]} hxg5 {[%emt 0:01:31]} 29. Qg4 {[%emt 0:01:39]} Qh6 {
[%emt 0:00:36]} 30. Nd2 {[%emt 0:08:06]} Bf8 {[%emt 0:01:07]} 31. Nc4 {[%emt 0:
00:41]} Be6 {[%emt 0:00:26]} 32. Qf3 {[%emt 0:01:13]} Qh4 {[%emt 0:00:21]} 33.
Bf5 {[%emt 0:02:03]} Bxc4 {[%emt 0:02:23]} 34. bxc4 {[%emt 0:00:01]} g6 {
[%emt 0:00:08]} 35. Be4 {[%emt 0:03:29]} Rxe5 {[%emt 0:00:02]} 36. Bxb7 {
[%emt 0:00:01]} Rf5 {[%emt 0:00:45]} 37. Qg3 {[%emt 0:00:18]} Qxg3 {[%emt 0:00:
22]} 38. fxg3 {[%emt 0:00:01]} Rf6 {[%emt 0:00:08]} 39. Rab1 {[%emt 0:00:26]}
Kg7 {[%emt 0:00:10]} 40. Rf1 {[%emt 0:01:36]} Rxf1+ {[%emt 0:00:34]} 41. Kxf1 {
[%emt 0:00:02]} Rb8 {[%emt 0:00:19]} 42. Rb6 {[%emt 0:00:42]} Be7 {[%emt 0:00:
11]} 43. Bxa6 {[%emt 0:01:22]} Ra8 {[%emt 0:00:03]} 44. Rc6 {[%emt 0:00:50]}
Bd8 {[%emt 0:00:03]} 45. Bb5 {[%emt 0:00:10]} Bxa5 {[%emt 0:00:07]} 46. Rxc5 {
[%emt 0:00:04]} Ra7 {[%emt 0:01:17]} 47. Rxg5 {[%emt 0:00:12]} f5 {[%emt 0:00:
02]} 48. Be8 {[%emt 0:00:22]} Ra6 {[%emt 0:00:01]} 49. Bxg6 {[%emt 0:00:30]}
Rxg6 {[%emt 0:00:03]} 50. Rxf5 {[%emt 0:00:01]} Bc3 {[%emt 0:00:17]} 51. c5 {
[%emt 0:00:29]} Ra6 {[%emt 0:00:29]} 52. Ke2 {[%emt 0:00:13]} Ba1 {[%emt 0:01:
32]} 53. g4 {[%emt 0:00:11]} Ra2 {[%emt 0:00:10]} 54. Kd2 {[%emt 0:00:12]} Ra3
{[%emt 0:00:12]} 55. Rf3 {[%emt 0:00:26]} Ra5 {[%emt 0:00:50]} 56. Rf5 {
[%emt 0:00:02]} Ra3 {[%emt 0:00:02]} 57. c6 {[%emt 0:00:33]} Rc3 {[%emt 0:00:
07]} 58. Ra5 {[%emt 0:00:02]} Bb2 {[%emt 0:00:58]} 59. Rb5 {[%emt 0:00:01]} Ba3
{[%emt 0:00:20]} 60. Rb3 {[%emt 0:00:01]} Rxb3 {[%emt 0:00:10]} 61. cxb3 {
[%emt 0:00:01]} Bd6 {[%emt 0:00:03]} 62. Kd3 {[%emt 0:00:03]} 1-0

[Event "Limburg Open 2022"]
[Site "Maastricht"]
[Date "2022.06.05"]
[Round "4.9"]
[White "Noiroux, Kevin"]
[Black "Braun, Christian"]
[Result "0-1"]
[ECO "D00"]
[WhiteElo "2210"]
[BlackElo "2428"]
[PlyCount "78"]
[EventDate "2022.06.03"]
[EventType "swiss"]
[EventRounds "7"]
[EventCountry "NED"]
[SourceTitle "Limburg Open"]
[Source "Limburg Open"]
[SourceDate "2022.06.06"]
[SourceVersion "7"]
[SourceVersionDate "2022.06.06"]
[SourceQuality "1"]
[TimeControl "7200+15"]

1. d4 {[%emt 0:00:02]} Nf6 {[%emt 0:19:26]} 2. Nf3 {[%emt 0:00:28]} g6 {
[%emt 0:00:31]} 3. Nc3 {[%emt 0:00:04]} d5 {[%emt 0:00:23]} 4. Bf4 {[%emt 0:00:
07]} Bg7 {[%emt 0:00:11]} 5. e3 {[%emt 0:00:05]} O-O {[%emt 0:00:11]} 6. Be2 {
[%emt 0:00:03]} c5 {[%emt 0:00:08]} 7. dxc5 {[%emt 0:00:04]} Nbd7 {[%emt 0:00:
05]} 8. Nxd5 {[%emt 0:00:08]} Nxd5 {[%emt 0:00:06]} 9. Qxd5 {[%emt 0:00:04]}
Bxb2 {[%emt 0:00:07]} 10. O-O {[%emt 0:00:04]} Bxa1 {[%emt 0:00:05]} 11. Rxa1 {
[%emt 0:00:04]} Qa5 {[%emt 0:00:09]} 12. Bh6 {[%emt 0:00:32]} Qxc5 {[%emt 0:00:
06]} 13. Qb3 {[%emt 0:00:04]} b6 {[%emt 0:00:06]} 14. Rd1 {[%emt 0:00:05]} Nf6
{[%emt 0:00:06]} 15. Ng5 {[%emt 0:05:26]} Bf5 {[%emt 0:02:00]} 16. Bc4 {
[%emt 0:05:13]} e6 {[%emt 0:00:06]} 17. Qb2 {[%emt 0:00:15]} Nh5 {[%emt 0:03:
35]} 18. Bb3 {[%emt 0:06:48]} Rad8 {[%emt 0:04:34]} 19. Rf1 {[%emt 0:02:22]}
Rc8 {[%emt 0:06:27]} 20. e4 {[%emt 0:31:26]} Bg4 {[%emt 0:05:08]} 21. h3 {
[%emt 0:00:40]} Be2 {[%emt 0:00:24]} 22. Re1 {[%emt 0:05:06]} Qd6 {[%emt 0:00:
13]} 23. Bxf8 {[%emt 0:37:39]} Rxf8 {[%emt 0:01:57]} 24. c4 {[%emt 0:02:09]}
Bd3 {[%emt 0:02:10]} 25. Rd1 {[%emt 0:03:52]} Rd8 {[%emt 0:07:57]} 26. Qd2 {
[%emt 0:01:13]} Nf4 {[%emt 0:03:29]} 27. g3 {[%emt 0:16:11]} Ne2+ {[%emt 0:01:
10]} 28. Kg2 {[%emt 0:00:24]} Qc5 {[%emt 0:04:24]} 29. Nf3 {[%emt 0:05:41]} b5
{[%emt 0:00:26]} 30. Qxe2 {[%emt 0:00:46]} Bxe2 {[%emt 0:00:17]} 31. Rxd8+ {
[%emt 0:00:02]} Kg7 {[%emt 0:00:08]} 32. cxb5 {[%emt 0:00:04]} Qc1 {[%emt 0:03:
36]} 33. Nd2 {[%emt 0:00:02]} Bxb5 {[%emt 0:00:47]} 34. a4 {[%emt 0:01:03]} Bc6
{[%emt 0:00:35]} 35. f3 {[%emt 0:00:27]} Qe1 {[%emt 0:00:40]} 36. h4 {[%emt 0:
00:16]} a5 {[%emt 0:01:36]} 37. Rd6 {[%emt 0:00:07]} Bd5 {[%emt 0:00:19]} 38.
exd5 {[%emt 0:00:23]} Qxd2+ {[%emt 0:00:07]} 39. Kh3 {[%emt 0:00:14]} Qb4 {
[%emt 0:00:11]} 0-1

[Event "Limburg Open 2022"]
[Site "Maastricht"]
[Date "2022.06.05"]
[Round "4.10"]
[White "Ondersteijn, Niels"]
[Black "Pham, Khoi"]
[Result "1/2-1/2"]
[ECO "A12"]
[WhiteElo "2376"]
[BlackElo "2244"]
[PlyCount "91"]
[EventDate "2022.06.03"]
[EventType "swiss"]
[EventRounds "7"]
[EventCountry "NED"]
[SourceTitle "Limburg Open"]
[Source "Limburg Open"]
[SourceDate "2022.06.06"]
[SourceVersion "7"]
[SourceVersionDate "2022.06.06"]
[SourceQuality "1"]
[TimeControl "7200+15"]

1. b3 {[%emt 0:02:04]} d5 {[%emt 0:01:44]} 2. Bb2 {[%emt 0:00:13]} Bf5 {
[%emt 0:00:17]} 3. Nf3 {[%emt 0:01:43]} e6 {[%emt 0:00:19]} 4. c4 {[%emt 0:01:
31]} c6 {[%emt 0:00:39]} 5. g3 {[%emt 0:00:17]} h6 {[%emt 0:00:10]} 6. Bg2 {
[%emt 0:00:06]} Nf6 {[%emt 0:00:05]} 7. O-O {[%emt 0:00:15]} Be7 {[%emt 0:00:
29]} 8. d3 {[%emt 0:00:16]} O-O {[%emt 0:00:41]} 9. Nbd2 {[%emt 0:00:06]} Nbd7
{[%emt 0:01:20]} 10. a3 {[%emt 0:00:31]} a5 {[%emt 0:01:42]} 11. Ra2 {[%emt 0:
01:19]} Qc7 {[%emt 0:14:12]} 12. Qa1 {[%emt 0:00:48]} Rfd8 {[%emt 0:04:52]} 13.
Rc1 {[%emt 0:13:46]} Qb6 {[%emt 0:06:31]} 14. Bc3 {[%emt 0:14:24]} Qa6 {
[%emt 0:09:23]} 15. cxd5 {[%emt 0:12:02]} cxd5 {[%emt 0:02:47]} 16. a4 {
[%emt 0:09:36]} Bg6 {[%emt 0:17:43]} 17. Rac2 {[%emt 0:06:19]} Ne8 {[%emt 0:07:
01]} 18. Nd4 {[%emt 0:04:45]} Nc5 {[%emt 0:14:03]} 19. N2f3 {[%emt 0:05:42]}
Bf6 {[%emt 0:05:05]} 20. Qa3 {[%emt 0:05:30]} Qb6 {[%emt 0:10:15]} 21. Nb5 {
[%emt 0:07:34]} Na6 {[%emt 0:00:52]} 22. Bxf6 {[%emt 0:07:31]} Nxf6 {[%emt 0:
00:04]} 23. Ne5 {[%emt 0:00:46]} Bh5 {[%emt 0:01:58]} 24. Qb2 {[%emt 0:07:54]}
Nb4 {[%emt 0:05:19]} 25. Rc7 {[%emt 0:00:58]} Na6 {[%emt 0:01:19]} 26. R7c2 {
[%emt 0:02:47]} Nb4 {[%emt 0:00:06]} 27. Rc3 {[%emt 0:00:38]} Ng4 {[%emt 0:01:
34]} 28. Nxg4 {[%emt 0:01:25]} Bxg4 {[%emt 0:00:03]} 29. Rc7 {[%emt 0:01:13]}
Nc6 {[%emt 0:01:48]} 30. h3 {[%emt 0:02:07]} Bf5 {[%emt 0:00:19]} 31. g4 {
[%emt 0:01:52]} Bg6 {[%emt 0:00:05]} 32. Qc3 {[%emt 0:04:04]} Rac8 {[%emt 0:00:
57]} 33. Rxc8 {[%emt 0:00:31]} Rxc8 {[%emt 0:00:04]} 34. Qc5 {[%emt 0:00:08]}
Qxc5 {[%emt 0:01:48]} 35. Rxc5 {[%emt 0:00:02]} b6 {[%emt 0:01:39]} 36. Rc1 {
[%emt 0:00:44]} Na7 {[%emt 0:01:07]} 37. Rxc8+ {[%emt 0:00:54]} Nxc8 {[%emt 0:
00:04]} 38. f4 {[%emt 0:00:07]} Kf8 {[%emt 0:01:38]} 39. Kf2 {[%emt 0:00:15]}
Ke7 {[%emt 0:00:35]} 40. Nd4 {[%emt 0:01:05]} Kd6 {[%emt 0:02:23]} 41. Ke3 {
[%emt 0:03:03]} Kc5 {[%emt 0:01:58]} 42. Nc2 {[%emt 0:00:04]} Nd6 {[%emt 0:01:
29]} 43. Kd2 {[%emt 0:00:51]} b5 {[%emt 0:00:24]} 44. axb5 {[%emt 0:00:15]}
Nxb5 {[%emt 0:00:04]} 45. e3 {[%emt 0:00:28]} d4 {[%emt 0:00:18]} 46. e4 {
[%emt 0:00:33]} 1/2-1/2

[Event "Limburg Open 2022"]
[Site "Maastricht"]
[Date "2022.06.05"]
[Round "4.11"]
[White "De Rover, Yong Hoon"]
[Black "Kucharska, Honorata"]
[Result "1/2-1/2"]
[ECO "C18"]
[WhiteElo "2359"]
[BlackElo "2181"]
[PlyCount "110"]
[EventDate "2022.06.03"]
[EventType "swiss"]
[EventRounds "7"]
[EventCountry "NED"]
[SourceTitle "Limburg Open"]
[Source "Limburg Open"]
[SourceDate "2022.06.06"]
[SourceVersion "7"]
[SourceVersionDate "2022.06.06"]
[SourceQuality "1"]
[TimeControl "7200+15"]

1. e4 {[%emt 0:01:59]} e6 {[%emt 0:00:03]} 2. d4 {[%emt 0:00:31]} d5 {[%emt 0:
00:04]} 3. Nc3 {[%emt 0:00:28]} Bb4 {[%emt 0:00:08]} 4. e5 {[%emt 0:01:07]} c5
{[%emt 0:00:11]} 5. a3 {[%emt 0:00:55]} Bxc3+ {[%emt 0:00:15]} 6. bxc3 {
[%emt 0:00:10]} Qa5 {[%emt 0:00:19]} 7. Bd2 {[%emt 0:03:47]} Qa4 {[%emt 0:00:
44]} 8. Qb1 {[%emt 0:01:39]} c4 {[%emt 0:00:30]} 9. h4 {[%emt 0:06:15]} Nc6 {
[%emt 0:01:44]} 10. h5 {[%emt 0:01:33]} h6 {[%emt 0:00:28]} 11. Nf3 {[%emt 0:
06:49]} Bd7 {[%emt 0:02:43]} 12. Be2 {[%emt 0:04:45]} O-O-O {[%emt 0:02:03]}
13. Nh4 {[%emt 0:06:48]} Nge7 {[%emt 0:02:58]} 14. g3 {[%emt 0:03:20]} Rdg8 {
[%emt 0:01:34]} 15. Qc1 {[%emt 0:08:59]} a6 {[%emt 0:15:26]} 16. Ng2 {[%emt 0:
02:15]} g5 {[%emt 0:12:29]} 17. Ne3 {[%emt 0:02:00]} Rf8 {[%emt 0:04:58]} 18.
Ng4 {[%emt 0:05:47]} Ng8 {[%emt 0:01:27]} 19. f4 {[%emt 0:01:00]} gxf4 {
[%emt 0:00:29]} 20. Bxf4 {[%emt 0:00:26]} Qa5 {[%emt 0:00:16]} 21. Qe3 {
[%emt 0:02:37]} Nce7 {[%emt 0:08:05]} 22. O-O {[%emt 0:03:40]} Nf5 {[%emt 0:03:
36]} 23. Qd2 {[%emt 0:01:40]} Kb8 {[%emt 0:00:05]} 24. Nf6 {[%emt 0:02:48]} Bc6
{[%emt 0:00:04]} 25. g4 {[%emt 0:01:14]} Nfe7 {[%emt 0:00:32]} 26. a4 {[%emt 0:
12:39]} Ka8 {[%emt 0:01:41]} 27. Rfb1 {[%emt 0:00:30]} Nc8 {[%emt 0:04:13]} 28.
Rb4 {[%emt 0:01:51]} Nd6 {[%emt 0:02:34]} 29. Nxg8 {[%emt 0:08:40]} Ne4 {
[%emt 0:01:28]} 30. Qe3 {[%emt 0:00:19]} Rfxg8 {[%emt 0:00:07]} 31. Kh2 {
[%emt 0:00:20]} Qd8 {[%emt 0:08:40]} 32. Kh3 {[%emt 0:02:12]} f6 {[%emt 0:03:
39]} 33. exf6 {[%emt 0:02:23]} Qxf6 {[%emt 0:00:18]} 34. Rf1 {[%emt 0:01:27]}
Qe7 {[%emt 0:00:49]} 35. Bf3 {[%emt 0:04:12]} Ng5+ {[%emt 0:01:09]} 36. Bxg5 {
[%emt 0:00:58]} Rxg5 {[%emt 0:00:04]} 37. Re1 {[%emt 0:00:26]} Rf8 {[%emt 0:01:
07]} 38. a5 {[%emt 0:03:49]} Qf6 {[%emt 0:07:43]} 39. Rf1 {[%emt 0:02:54]} Rfg8
{[%emt 0:00:40]} 40. Be2 {[%emt 0:01:17]} Qg7 {[%emt 0:00:21]} 41. Rf2 {
[%emt 0:02:57]} Rxg4 {[%emt 0:01:39]} 42. Rf8+ {[%emt 0:01:07]} Qxf8 {[%emt 0:
00:43]} 43. Bxg4 {[%emt 0:00:07]} Qf1+ {[%emt 0:01:39]} 44. Kg3 {[%emt 0:00:19]
} Qf5 {[%emt 0:01:39]} 45. Qe2 {[%emt 0:00:42]} Qxh5 {[%emt 0:00:43]} 46. Qxe6
{[%emt 0:01:19]} Qg6 {[%emt 0:02:46]} 47. Qxg6 {[%emt 0:00:54]} Rxg6 {[%emt 0:
00:04]} 48. Kf4 {[%emt 0:00:10]} Ka7 {[%emt 0:01:00]} 49. Rb1 {[%emt 0:00:17]}
Rf6+ {[%emt 0:04:58]} 50. Ke3 {[%emt 0:01:03]} Be8 {[%emt 0:01:04]} 51. Bf3 {
[%emt 0:01:08]} Bf7 {[%emt 0:00:16]} 52. Rg1 {[%emt 0:00:19]} Kb8 {[%emt 0:01:
39]} 53. Rg7 {[%emt 0:00:26]} Kc8 {[%emt 0:00:32]} 54. Rh7 {[%emt 0:00:17]} Kd8
{[%emt 0:00:19]} 55. Rh8+ {[%emt 0:00:20]} Kc7 {[%emt 0:01:39] Ke4} 1/2-1/2

[Event "Limburg Open 2022"]
[Site "Maastricht"]
[Date "2022.06.05"]
[Round "4.12"]
[White "Rebers, Eugene"]
[Black "Kopylov, Daniel"]
[Result "0-1"]
[ECO "A03"]
[WhiteElo "2194"]
[BlackElo "2326"]
[PlyCount "50"]
[EventDate "2022.06.03"]
[EventType "swiss"]
[EventRounds "7"]
[EventCountry "NED"]
[SourceTitle "Limburg Open"]
[Source "Limburg Open"]
[SourceDate "2022.06.06"]
[SourceVersion "7"]
[SourceVersionDate "2022.06.06"]
[SourceQuality "1"]
[TimeControl "7200+15"]

1. f4 {[%emt 0:00:03]} Nf6 {[%emt 0:09:04]} 2. Nf3 {[%emt 0:00:05]} g6 {
[%emt 0:01:09]} 3. g3 {[%emt 0:00:07]} Bg7 {[%emt 0:00:06]} 4. Bg2 {[%emt 0:00:
06]} O-O {[%emt 0:00:05]} 5. O-O {[%emt 0:00:08]} c5 {[%emt 0:01:13]} 6. d3 {
[%emt 0:00:07]} d5 {[%emt 0:06:44]} 7. c3 {[%emt 0:00:08]} Nc6 {[%emt 0:00:07]}
8. Na3 {[%emt 0:00:07]} b6 {[%emt 0:08:16]} 9. Bd2 {[%emt 0:01:01]} Bb7 {
[%emt 0:01:35]} 10. b4 {[%emt 0:03:11]} cxb4 {[%emt 0:05:58]} 11. cxb4 {
[%emt 0:00:13]} Ng4 {[%emt 0:01:46]} 12. Rb1 {[%emt 0:02:54]} b5 {[%emt 0:05:
14]} 13. e3 {[%emt 0:06:34]} Qb6 {[%emt 0:07:26]} 14. Qe2 {[%emt 0:08:59]} e5 {
[%emt 0:04:20]} 15. fxe5 {[%emt 0:29:07]} d4 {[%emt 0:07:36]} 16. e4 {[%emt 0:
05:26]} Ncxe5 {[%emt 0:01:25]} 17. Nxe5 {[%emt 0:10:45]} Nxe5 {[%emt 0:00:23]}
18. Rfc1 {[%emt 0:14:55]} Rfc8 {[%emt 0:05:20]} 19. Rc5 {[%emt 0:08:04]} Rxc5 {
[%emt 0:01:13]} 20. bxc5 {[%emt 0:00:07]} Qxc5 {[%emt 0:00:41]} 21. Rxb5 {
[%emt 0:07:55]} Qxa3 {[%emt 0:01:44]} 22. Rxb7 {[%emt 0:00:07]} Qxa2 {[%emt 0:
00:43]} 23. Qd1 {[%emt 0:01:52]} Nxd3 {[%emt 0:03:26]} 24. e5 {[%emt 0:01:18]}
Rc8 {[%emt 0:01:53]} 25. Qg4 {[%emt 0:03:53]} Rc1+ {[%emt 0:01:06]} 0-1